Workbook

Sheet Calculator
F11: Active Transport Monitoring Survey
H15: Deployment Postcode | K15: mk1 | L15: =Single!D6 -> Milton Keynes
D18: UNITS | F18: 1 | H18: Required | J18: Survey Cost | L18: =LOOKUP(F20,'Hire Matrix'!D9:D21,'Hire Matrix'!E9:E21) -> £295.00
D20: WEEKS | F20: 1 | H20: Required | J20: Travel Excess | L20: =LOOKUP(Single!B6,Single!B12:B21,Single!D12:D21) -> 0 | N20: =LOOKUP(Single!B6,Single!B12:B21,Single!C12:C21) -> ZONE 1
D22: Cost PU/PW | F22: =LOOKUP(Calculator!F20,'Hire Matrix'!D9:D21,'Hire Matrix'!F9:F21) -> £295.00 | J22: London weighting | L22: =IF(Single!D6="london",50,0) -> 0
F24: Data Collection Regime | J24: + Data Collection | L24: =IF('Hire Matrix'!H24=-250,0,'Hire Matrix'!H24) -> 0
J26: TOTAL COST | L26: =(L18+L20+L22+L24) -> £295.00
C29: Enter postcode of Survey Location Select number of units and weeks of survey required Survey & Per unit cost are auto calculated. Select data collection frequency. Minimum hire period 1 week

Sheet Hire Matrix
D6: =Calculator!F18 -> 1 | E6: Unit | I6: Units | J6: Cost
D7: Weeks | I7: 1 | J7: 295
D8: 1 | E8: =LOOKUP(D6,I7:I15,J7:J15) -> £295.00 | I8: 2 | J8: =ROUNDUP((I8*$J$7)*(1-(I8/100)),-1) -> 580
C9: Minimum Hire Period | D9: 1 | E9: =$E$8*D9 -> £295.00 | F9: =(E9/D9)/$D$6 -> £295.00 | I9: 3 | J9: 860
D10: 2 | E10: =ROUNDUP(D10*($E$8*((100-D10)/100)),-1) -> £580.00 | F10: £290.00 | I10: 4 | J10: 1140
D11: 3 | E11: £860.00 | F11: £286.67 | I11: 5 | J11: 1410
D12: 4 | E12: £1,140.00 | F12: £285.00 | I12: 6 | J12: 1670
D13: 5 | E13: £1,410.00 | F13: £282.00 | I13: 7 | J13: 1930
D14: 6 | E14: £1,670.00 | F14: £278.33 | I14: 8 | J14: 2180
D15: 7 | E15: £1,930.00 | F15: £275.71 | I15: 9 | J15: 2420
D16: 8 | E16: £2,180.00 | F16: £272.50
D17: 9 | E17: £2,420.00 | F17: £268.89
D18: 10 | E18: £2,660.00 | F18: £266.00
D19: 11 | E19: £2,890.00 | F19: £262.73
D20: 12 | E20: £3,120.00 | F20: £260.00
D21: 13 | E21: £3,340.00 | F21: £256.92
E23: Data Collection | F23: Total
C24: Button | D24: 1 | E24: 250 | F24: =(D25*E24)+(D26*E24) -> 0 | H24: =F24-E24 -> -250
C25: Weeks | D25: =IF(D24=2,Calculator!F20,0) -> 0
C26: Months | D26: =IF(D24=3,Calculator!F20/4,0) -> 0

Sheet Equipment
B4: Eco Compact Units
B5: SN | C5: Dir/Non-Dir | D5: Pyro Type | F5: Domain | G5: From | H5: To | I5: Replacement Cost
B6: P60G4015015 | C6: Non-Dir | D6: M | E6: =IF(F6="",1,0) -> 0 | F6: Birmingham Cycle Revolution | G6: 2020-12-01 | H6: 2021-03-31 | I6: £2,500.00
B7: P60G4015016 | C7: Non-Dir | D7: Zoom | E7: =IF(F7="",1,0) -> 1 | I7: £3,000.00
B8: P60G4015013 | C8: Non-Dir | D8: M | E8: 0 | F8: Birmingham Cycle Revolution | G8: 2020-12-01 | H8: 2021-03-31 | I8: £2,500.00
B9: XPH15108587 | C9: Non-Dir | D9: Zoom | E9: 1 | I9: £3,000.00
B10: P60G4035405 | C10: Non-Dir | D10: Zoom | E10: 1 | I10: £3,000.00
B11: XPH15108586 | C11: Non-Dir | D11: Zoom | E11: 1 | I11: £3,000.00
B12: XPH16039453 | C12: Non-Dir | D12: M | E12: 1 | I12: £2,500.00
B13: XPH18106657 | C13: Dir | D13: Short | E13: 1 | I13: £2,025.00
B14: ECO10104250/10 | C14: Dir | D14: M | E14: 1 | I14: £2,500.00
B15: Eco10104254/10 | C15: Non-Dir | D15: Short | E15: 1 | I15: £2,025.00
B16: P60G3063862 | C16: Non-Dir | D16: M | E16: 1 | I16: £2,500.00
D18: For Hire | E18: =SUM(E6:E17) -> 9 | H18: Ave Replacment cost | I18: =AVERAGE(I6:I16)*0.75 -> £1,946.59

Sheet Multiple
A1: Multiple UK Postcode distances
A3: PostCode_1 | B3: PostCode_2 | C3: Lat_1 | D3: Long_1 | E3: Lat_2 | F3: Long_2 | G3: Distance (miles)
A4: WA1 | B4: SW14 | C4: =IF(A4="","",IF(ISNA(VLOOKUP(A4,UK_PostCodes!A$2:D$2824,1,0)),"",VLOOKUP(A4,UK_PostCodes!A$2:D$2824,3,0))) -> 53.394 | D4: =IF(A4="","",VLOOKUP(A4,UK_PostCodes!A$2:D$2824,4,0)) -> -2.569 | E4: =IF(B4="","",IF(ISNA(VLOOKUP(B4,UK_PostCodes!A$2:D$2824,1,0)),"",VLOOKUP(B4,UK_PostCodes!A$2:D$2824,3,0))) -> 51.465 | F4: =IF(B4="","",VLOOKUP(B4,UK_PostCodes!A$2:D$2824,4,0)) -> -0.265 | G4: =IF(COUNTIF(A4:F4,"?*")=0,"",3960*ACOS(COS(RADIANS(90-C4))*COS(RADIANS(90-E4))+SIN(RADIANS(90-C4))*SIN(RADIANS(90-E4))*COS(RADIANS(D4-F4)))) -> 164.91
A5: WA1 | B5: IP11 | C5: =IF(A5="","",IF(ISNA(VLOOKUP(A5,UK_PostCodes!A$2:D$2824,1,0)),"",VLOOKUP(A5,UK_PostCodes!A$2:D$2824,3,0))) -> 53.394 | D5: =IF(A5="","",VLOOKUP(A5,UK_PostCodes!A$2:D$2824,4,0)) -> -2.569 | E5: =IF(B5="","",IF(ISNA(VLOOKUP(B5,UK_PostCodes!A$2:D$2824,1,0)),"",VLOOKUP(B5,UK_PostCodes!A$2:D$2824,3,0))) -> 51.97 | F5: =IF(B5="","",VLOOKUP(B5,UK_PostCodes!A$2:D$2824,4,0)) -> 1.334 | G5: 190.83
A6: WA1 | B6: BT7 | C6: =IF(A6="","",IF(ISNA(VLOOKUP(A6,UK_PostCodes!A$2:D$2824,1,0)),"",VLOOKUP(A6,UK_PostCodes!A$2:D$2824,3,0))) -> 53.394 | D6: =IF(A6="","",VLOOKUP(A6,UK_PostCodes!A$2:D$2824,4,0)) -> -2.569 | E6: =IF(B6="","",IF(ISNA(VLOOKUP(B6,UK_PostCodes!A$2:D$2824,1,0)),"",VLOOKUP(B6,UK_PostCodes!A$2:D$2824,3,0))) -> 54.582 | F6: =IF(B6="","",VLOOKUP(B6,UK_PostCodes!A$2:D$2824,4,0)) -> -5.924 | G6: 159.13
A7: WA1 | B7: WA15 | C7: =IF(A7="","",IF(ISNA(VLOOKUP(A7,UK_PostCodes!A$2:D$2824,1,0)),"",VLOOKUP(A7,UK_PostCodes!A$2:D$2824,3,0))) -> 53.394 | D7: =IF(A7="","",VLOOKUP(A7,UK_PostCodes!A$2:D$2824,4,0)) -> -2.569 | E7: =IF(B7="","",IF(ISNA(VLOOKUP(B7,UK_PostCodes!A$2:D$2824,1,0)),"",VLOOKUP(B7,UK_PostCodes!A$2:D$2824,3,0))) -> 53.384 | F7: =IF(B7="","",VLOOKUP(B7,UK_PostCodes!A$2:D$2824,4,0)) -> -2.325 | G7: 10.08
A8: WA1 | B8: SE8 | C8: =IF(A8="","",IF(ISNA(VLOOKUP(A8,UK_PostCodes!A$2:D$2824,1,0)),"",VLOOKUP(A8,UK_PostCodes!A$2:D$2824,3,0))) -> 53.394 | D8: =IF(A8="","",VLOOKUP(A8,UK_PostCodes!A$2:D$2824,4,0)) -> -2.569 | E8: =IF(B8="","",IF(ISNA(VLOOKUP(B8,UK_PostCodes!A$2:D$2824,1,0)),"",VLOOKUP(B8,UK_PostCodes!A$2:D$2824,3,0))) -> 51.481 | F8: =IF(B8="","",VLOOKUP(B8,UK_PostCodes!A$2:D$2824,4,0)) -> -0.028 | G8: 170.11
A9: WA1 | B9: WA4 | C9: =IF(A9="","",IF(ISNA(VLOOKUP(A9,UK_PostCodes!A$2:D$2824,1,0)),"",VLOOKUP(A9,UK_PostCodes!A$2:D$2824,3,0))) -> 53.394 | D9: =IF(A9="","",VLOOKUP(A9,UK_PostCodes!A$2:D$2824,4,0)) -> -2.569 | E9: =IF(B9="","",IF(ISNA(VLOOKUP(B9,UK_PostCodes!A$2:D$2824,1,0)),"",VLOOKUP(B9,UK_PostCodes!A$2:D$2824,3,0))) -> 53.365 | F9: =IF(B9="","",VLOOKUP(B9,UK_PostCodes!A$2:D$2824,4,0)) -> -2.574 | G9: 2.01
C10: =IF(A10="","",IF(ISNA(VLOOKUP(A10,UK_PostCodes!A$2:D$2824,1,0)),"",VLOOKUP(A10,UK_PostCodes!A$2:D$2824,3,0))) ->  | D10: =IF(A10="","",VLOOKUP(A10,UK_PostCodes!A$2:D$2824,4,0)) ->  | E10: =IF(B10="","",IF(ISNA(VLOOKUP(B10,UK_PostCodes!A$2:D$2824,1,0)),"",VLOOKUP(B10,UK_PostCodes!A$2:D$2824,3,0))) ->  | F10: =IF(B10="","",VLOOKUP(B10,UK_PostCodes!A$2:D$2824,4,0)) -> 
C11: =IF(A11="","",IF(ISNA(VLOOKUP(A11,UK_PostCodes!A$2:D$2824,1,0)),"",VLOOKUP(A11,UK_PostCodes!A$2:D$2824,3,0))) ->  | D11: =IF(A11="","",VLOOKUP(A11,UK_PostCodes!A$2:D$2824,4,0)) ->  | E11: =IF(B11="","",IF(ISNA(VLOOKUP(B11,UK_PostCodes!A$2:D$2824,1,0)),"",VLOOKUP(B11,UK_PostCodes!A$2:D$2824,3,0))) ->  | F11: =IF(B11="","",VLOOKUP(B11,UK_PostCodes!A$2:D$2824,4,0)) -> 
C12: =IF(A12="","",IF(ISNA(VLOOKUP(A12,UK_PostCodes!A$2:D$2824,1,0)),"",VLOOKUP(A12,UK_PostCodes!A$2:D$2824,3,0))) ->  | D12: =IF(A12="","",VLOOKUP(A12,UK_PostCodes!A$2:D$2824,4,0)) ->  | E12: =IF(B12="","",IF(ISNA(VLOOKUP(B12,UK_PostCodes!A$2:D$2824,1,0)),"",VLOOKUP(B12,UK_PostCodes!A$2:D$2824,3,0))) ->  | F12: =IF(B12="","",VLOOKUP(B12,UK_PostCodes!A$2:D$2824,4,0)) -> 
C13: =IF(A13="","",IF(ISNA(VLOOKUP(A13,UK_PostCodes!A$2:D$2824,1,0)),"",VLOOKUP(A13,UK_PostCodes!A$2:D$2824,3,0))) ->  | D13: =IF(A13="","",VLOOKUP(A13,UK_PostCodes!A$2:D$2824,4,0)) ->  | E13: =IF(B13="","",IF(ISNA(VLOOKUP(B13,UK_PostCodes!A$2:D$2824,1,0)),"",VLOOKUP(B13,UK_PostCodes!A$2:D$2824,3,0))) ->  | F13: =IF(B13="","",VLOOKUP(B13,UK_PostCodes!A$2:D$2824,4,0)) -> 
C14: =IF(A14="","",IF(ISNA(VLOOKUP(A14,UK_PostCodes!A$2:D$2824,1,0)),"",VLOOKUP(A14,UK_PostCodes!A$2:D$2824,3,0))) ->  | D14: =IF(A14="","",VLOOKUP(A14,UK_PostCodes!A$2:D$2824,4,0)) ->  | E14: =IF(B14="","",IF(ISNA(VLOOKUP(B14,UK_PostCodes!A$2:D$2824,1,0)),"",VLOOKUP(B14,UK_PostCodes!A$2:D$2824,3,0))) ->  | F14: =IF(B14="","",VLOOKUP(B14,UK_PostCodes!A$2:D$2824,4,0)) -> 
C15: =IF(A15="","",IF(ISNA(VLOOKUP(A15,UK_PostCodes!A$2:D$2824,1,0)),"",VLOOKUP(A15,UK_PostCodes!A$2:D$2824,3,0))) ->  | D15: =IF(A15="","",VLOOKUP(A15,UK_PostCodes!A$2:D$2824,4,0)) ->  | E15: =IF(B15="","",IF(ISNA(VLOOKUP(B15,UK_PostCodes!A$2:D$2824,1,0)),"",VLOOKUP(B15,UK_PostCodes!A$2:D$2824,3,0))) ->  | F15: =IF(B15="","",VLOOKUP(B15,UK_PostCodes!A$2:D$2824,4,0)) -> 
C16: =IF(A16="","",IF(ISNA(VLOOKUP(A16,UK_PostCodes!A$2:D$2824,1,0)),"",VLOOKUP(A16,UK_PostCodes!A$2:D$2824,3,0))) ->  | D16: =IF(A16="","",VLOOKUP(A16,UK_PostCodes!A$2:D$2824,4,0)) ->  | E16: =IF(B16="","",IF(ISNA(VLOOKUP(B16,UK_PostCodes!A$2:D$2824,1,0)),"",VLOOKUP(B16,UK_PostCodes!A$2:D$2824,3,0))) ->  | F16: =IF(B16="","",VLOOKUP(B16,UK_PostCodes!A$2:D$2824,4,0)) -> 
C17: =IF(A17="","",IF(ISNA(VLOOKUP(A17,UK_PostCodes!A$2:D$2824,1,0)),"",VLOOKUP(A17,UK_PostCodes!A$2:D$2824,3,0))) ->  | D17: =IF(A17="","",VLOOKUP(A17,UK_PostCodes!A$2:D$2824,4,0)) ->  | E17: =IF(B17="","",IF(ISNA(VLOOKUP(B17,UK_PostCodes!A$2:D$2824,1,0)),"",VLOOKUP(B17,UK_PostCodes!A$2:D$2824,3,0))) ->  | F17: =IF(B17="","",VLOOKUP(B17,UK_PostCodes!A$2:D$2824,4,0)) -> 
C18: =IF(A18="","",IF(ISNA(VLOOKUP(A18,UK_PostCodes!A$2:D$2824,1,0)),"",VLOOKUP(A18,UK_PostCodes!A$2:D$2824,3,0))) ->  | D18: =IF(A18="","",VLOOKUP(A18,UK_PostCodes!A$2:D$2824,4,0)) ->  | E18: =IF(B18="","",IF(ISNA(VLOOKUP(B18,UK_PostCodes!A$2:D$2824,1,0)),"",VLOOKUP(B18,UK_PostCodes!A$2:D$2824,3,0))) ->  | F18: =IF(B18="","",VLOOKUP(B18,UK_PostCodes!A$2:D$2824,4,0)) -> 
C19: =IF(A19="","",IF(ISNA(VLOOKUP(A19,UK_PostCodes!A$2:D$2824,1,0)),"",VLOOKUP(A19,UK_PostCodes!A$2:D$2824,3,0))) ->  | D19: =IF(A19="","",VLOOKUP(A19,UK_PostCodes!A$2:D$2824,4,0)) ->  | E19: =IF(B19="","",IF(ISNA(VLOOKUP(B19,UK_PostCodes!A$2:D$2824,1,0)),"",VLOOKUP(B19,UK_PostCodes!A$2:D$2824,3,0))) ->  | F19: =IF(B19="","",VLOOKUP(B19,UK_PostCodes!A$2:D$2824,4,0)) -> 
C20: =IF(A20="","",IF(ISNA(VLOOKUP(A20,UK_PostCodes!A$2:D$2824,1,0)),"",VLOOKUP(A20,UK_PostCodes!A$2:D$2824,3,0))) ->  | D20: =IF(A20="","",VLOOKUP(A20,UK_PostCodes!A$2:D$2824,4,0)) ->  | E20: =IF(B20="","",IF(ISNA(VLOOKUP(B20,UK_PostCodes!A$2:D$2824,1,0)),"",VLOOKUP(B20,UK_PostCodes!A$2:D$2824,3,0))) ->  | F20: =IF(B20="","",VLOOKUP(B20,UK_PostCodes!A$2:D$2824,4,0)) -> 

Sheet Single
A1: Single UK Postcode distances
A3: Enter PostCode 1 | B3: nn12 | C3: =IF(B3="","",IF(ISNA(VLOOKUP(B3,UK_PostCodes!A$2:D$2824,1,0)),"",VLOOKUP(B3,UK_PostCodes!A$2:D$2824,3,0))) -> 52.128 | D3: =IF(B3="","",VLOOKUP(B3,UK_PostCodes!A$2:D$2824,4,0)) -> -0.998
A4: Enter PostCode 2 | B4: =Calculator!K15 -> mk1 | C4: =IF(B4="","",IF(ISNA(VLOOKUP(B4,UK_PostCodes!A$2:D$2824,1,0)),"",VLOOKUP(B4,UK_PostCodes!A$2:D$2824,3,0))) -> 52.005 | D4: =IF(B4="","",VLOOKUP(B4,UK_PostCodes!A$2:D$2824,4,0)) -> -0.726
A6: Distance between = | B6: =(3960*ACOS(COS(RADIANS(90-C3))*COS(RADIANS(90-C4))+SIN(RADIANS(90-C3))*SIN(RADIANS(90-C4))*COS(RADIANS(D3-D4))))+25 -> 39.35 | C6: miles | D6: =LOOKUP(B4,UK_PostCodes!A2:A2824,UK_PostCodes!B2:B2824) -> Milton Keynes | E6: Plus 25mies added for non liniar
B12: 0 | C12: ZONE 1 | D12: 0
B13: 50 | C13: ZONE 2 | D13: 50
B14: 100 | C14: ZONE 3 | D14: 170
B15: 150 | C15: ZONE 4 | D15: =D14+((B15-B14)*1.5) -> 245
B16: 200 | C16: ZONE 5 | D16: 320
B17: 250 | C17: ZONE 6 | D17: 395
B18: 300 | C18: ZONE 7 | D18: 470
B19: 350 | C19: ZONE 8 | D19: 545
B20: 400 | C20: ZONE 9 | D20: 620
B21: 450 | C21: ZONE 10 | D21: 695

Sheet UK_PostCodes
A1: PostCode | B1: County or Area | C1: Latitude | D1: Longitude
A2: AB10 | B2: Aberdeen | C2: 57.135 | D2: -2.117
A3: AB11 | B3: Aberdeen | C3: 57.138 | D3: -2.092
A4: AB12 | B4: Aberdeen | C4: 57.101 | D4: -2.111
A5: AB13 | B5: Aberdeen | C5: 57.108 | D5: -2.237
A6: AB14 | B6: Aberdeen | C6: 57.101 | D6: -2.27
A7: AB15 | B7: Aberdeen | C7: 57.138 | D7: -2.164
A8: AB16 | B8: Aberdeen | C8: 57.161 | D8: -2.156
A9: AB21 | B9: Aberdeen | C9: 57.21 | D9: -2.2
A10: AB22 | B10: Aberdeen | C10: 57.187 | D10: -2.119
A11: AB23 | B11: Aberdeen | C11: 57.212 | D11: -2.088
A12: AB25 | B12: Aberdeen | C12: 57.153 | D12: -2.112
A13: AB30 | B13: Aberdeen | C13: 56.847 | D13: -2.477
A14: AB31 | B14: Aberdeen | C14: 57.074 | D14: -2.527
A15: AB32 | B15: Aberdeen | C15: 57.156 | D15: -2.317
A16: AB33 | B16: Aberdeen | C16: 57.225 | D16: -2.741
A17: AB34 | B17: Aberdeen | C17: 57.094 | D17: -2.812
A18: AB35 | B18: Aberdeen | C18: 57.038 | D18: -3.149
A19: AB36 | B19: Aberdeen | C19: 57.197 | D19: -3.067
A20: AB37 | B20: Aberdeen | C20: 57.331 | D20: -3.351
A21: AB38 | B21: Aberdeen | C21: 57.486 | D21: -3.225
A22: AB39 | B22: Aberdeen | C22: 56.978 | D22: -2.217
A23: AB41 | B23: Aberdeen | C23: 57.376 | D23: -2.105
A24: AB42 | B24: Aberdeen | C24: 57.501 | D24: -1.888
A25: AB43 | B25: Aberdeen | C25: 57.658 | D25: -2.043
A26: AB44 | B26: Aberdeen | C26: 57.669 | D26: -2.492
A27: AB45 | B27: Aberdeen | C27: 57.651 | D27: -2.566
A28: AB51 | B28: Aberdeen | C28: 57.289 | D28: -2.405
A29: AB52 | B29: Aberdeen | C29: 57.344 | D29: -2.607
A30: AB53 | B30: Aberdeen | C30: 57.525 | D30: -2.393
A31: AB54 | B31: Aberdeen | C31: 57.454 | D31: -2.763
A32: AB55 | B32: Aberdeen | C32: 57.524 | D32: -2.99
A33: AB56 | B33: Aberdeen | C33: 57.675 | D33: -2.926
A34: AL1 | B34: St. Albans | C34: 51.748 | D34: -0.322
A35: AL10 | B35: St. Albans | C35: 51.76 | D35: -0.23
A36: AL2 | B36: St. Albans | C36: 51.72 | D36: -0.333
A37: AL3 | B37: St. Albans | C37: 51.778 | D37: -0.37
A38: AL4 | B38: St. Albans | C38: 51.772 | D38: -0.294
A39: AL5 | B39: St. Albans | C39: 51.816 | D39: -0.351
A40: AL6 | B40: St. Albans | C40: 51.831 | D40: -0.197
A41: AL7 | B41: St. Albans | C41: 51.797 | D41: -0.186
A42: AL8 | B42: St. Albans | C42: 51.803 | D42: -0.209
A43: AL9 | B43: St. Albans | C43: 51.745 | D43: -0.199
A44: B1 | B44: Birmingham | C44: 52.478 | D44: -1.907
A45: B10 | B45: Birmingham | C45: 52.47 | D45: -1.851
A46: B11 | B46: Birmingham | C46: 52.454 | D46: -1.858
A47: B12 | B47: Birmingham | C47: 52.46 | D47: -1.882
A48: B13 | B48: Birmingham | C48: 52.437 | D48: -1.878
A49: B14 | B49: Birmingham | C49: 52.417 | D49: -1.889
A50: B15 | B50: Birmingham | C50: 52.467 | D50: -1.924
A51: B16 | B51: Birmingham | C51: 52.476 | D51: -1.933
A52: B17 | B52: Birmingham | C52: 52.461 | D52: -1.961
A53: B18 | B53: Birmingham | C53: 52.491 | D53: -1.924
A54: B19 | B54: Birmingham | C54: 52.496 | D54: -1.905
A55: B2 | B55: Birmingham | C55: 52.479 | D55: -1.897
A56: B20 | B56: Birmingham | C56: 52.514 | D56: -1.918
A57: B21 | B57: Birmingham | C57: 52.506 | D57: -1.939
A58: B23 | B58: Birmingham | C58: 52.528 | D58: -1.854
A59: B24 | B59: Birmingham | C59: 52.519 | D59: -1.827
A60: B25 | B60: Birmingham | C60: 52.465 | D60: -1.82
A61: B26 | B61: Birmingham | C61: 52.461 | D61: -1.79
A62: B27 | B62: Birmingham | C62: 52.445 | D62: -1.822
A63: B28 | B63: Birmingham | C63: 52.427 | D63: -1.842
A64: B29 | B64: Birmingham | C64: 52.437 | D64: -1.947
A65: B3 | B65: Birmingham | C65: 52.48 | D65: -1.902
A66: B30 | B66: Birmingham | C66: 52.422 | D66: -1.927
A67: B31 | B67: Birmingham | C67: 52.408 | D67: -1.972
A68: B32 | B68: Birmingham | C68: 52.448 | D68: -1.993
A69: B33 | B69: Birmingham | C69: 52.48 | D69: -1.787
A70: B34 | B70: Birmingham | C70: 52.496 | D70: -1.781
A71: B35 | B71: Birmingham | C71: 52.519 | D71: -1.788
A72: B36 | B72: Birmingham | C72: 52.504 | D72: -1.779
A73: B37 | B73: Birmingham | C73: 52.478 | D73: -1.741
A74: B38 | B74: Birmingham | C74: 52.4 | D74: -1.933
A75: B4 | B75: Birmingham | C75: 52.482 | D75: -1.894
A76: B40 | B76: Birmingham | C76: 52.459 | D76: -1.722
A77: B42 | B77: Birmingham | C77: 52.533 | D77: -1.911
A78: B43 | B78: Birmingham | C78: 52.548 | D78: -1.929
A79: B44 | B79: Birmingham | C79: 52.545 | D79: -1.884
A80: B45 | B80: Birmingham | C80: 52.388 | D80: -2.009
A81: B46 | B81: Birmingham | C81: 52.508 | D81: -1.694
A82: B47 | B82: Birmingham | C82: 52.387 | D82: -1.88
A83: B48 | B83: Birmingham | C83: 52.355 | D83: -1.948
A84: B49 | B84: Birmingham | C84: 52.217 | D84: -1.867
A85: B5 | B85: Birmingham | C85: 52.47 | D85: -1.896
A86: B50 | B86: Birmingham | C86: 52.169 | D86: -1.854
A87: B6 | B87: Birmingham | C87: 52.504 | D87: -1.885
A88: B60 | B88: Birmingham | C88: 52.326 | D88: -2.049
A89: B61 | B89: Birmingham | C89: 52.345 | D89: -2.067
A90: B62 | B90: Birmingham | C90: 52.456 | D90: -2.032
A91: B63 | B91: Birmingham | C91: 52.452 | D91: -2.067
A92: B64 | B92: Birmingham | C92: 52.472 | D92: -2.068
A93: B65 | B93: Birmingham | C93: 52.483 | D93: -2.042
A94: B66 | B94: Birmingham | C94: 52.493 | D94: -1.964
A95: B67 | B95: Birmingham | C95: 52.486 | D95: -1.977
A96: B68 | B96: Birmingham | C96: 52.479 | D96: -2
A97: B69 | B97: Birmingham | C97: 52.502 | D97: -2.028
A98: B7 | B98: Birmingham | C98: 52.493 | D98: -1.873
A99: B70 | B99: Birmingham | C99: 52.52 | D99: -2.003
A100: B71 | B100: Birmingham | C100: 52.535 | D100: -1.989
A101: B72 | B101: Birmingham | C101: 52.552 | D101: -1.821
A102: B73 | B102: Birmingham | C102: 52.552 | D102: -1.841
A103: B74 | B103: Birmingham | C103: 52.583 | D103: -1.858
A104: B75 | B104: Birmingham | C104: 52.578 | D104: -1.809
A105: B76 | B105: Birmingham | C105: 52.545 | D105: -1.785
A106: B77 | B106: Birmingham | C106: 52.618 | D106: -1.667
A107: B78 | B107: Birmingham | C107: 52.606 | D107: -1.673
A108: B79 | B108: Birmingham | C108: 52.65 | D108: -1.681
A109: B8 | B109: Birmingham | C109: 52.49 | D109: -1.84
A110: B80 | B110: Birmingham | C110: 52.277 | D110: -1.895
A111: B9 | B111: Birmingham | C111: 52.478 | D111: -1.849
A112: B90 | B112: Birmingham | C112: 52.4 | D112: -1.824
A113: B91 | B113: Birmingham | C113: 52.413 | D113: -1.782
A114: B92 | B114: Birmingham | C114: 52.436 | D114: -1.774
A115: B93 | B115: Birmingham | C115: 52.38 | D115: -1.743
A116: B94 | B116: Birmingham | C116: 52.351 | D116: -1.791
A117: B95 | B117: Birmingham | C117: 52.285 | D117: -1.779
A118: B96 | B118: Birmingham | C118: 52.252 | D118: -1.96
A119: B97 | B119: Birmingham | C119: 52.299 | D119: -1.954
A120: B98 | B120: Birmingham | C120: 52.303 | D120: -1.914
A121: BA1 | B121: Bath | C121: 51.391 | D121: -2.36
A122: BA10 | B122: Bath | C122: 51.113 | D122: -2.446
A123: BA11 | B123: Bath | C123: 51.236 | D123: -2.325
A124: BA12 | B124: Bath | C124: 51.171 | D124: -2.187
A125: BA13 | B125: Bath | C125: 51.262 | D125: -2.179
A126: BA14 | B126: Bath | C126: 51.318 | D126: -2.201
A127: BA15 | B127: Bath | C127: 51.351 | D127: -2.265
A128: BA16 | B128: Bath | C128: 51.125 | D128: -2.743
A129: BA2 | B129: Bath | C129: 51.36 | D129: -2.377
A130: BA20 | B130: Bath | C130: 50.938 | D130: -2.642
A131: BA21 | B131: Bath | C131: 50.951 | D131: -2.633
A132: BA22 | B132: Bath | C132: 50.968 | D132: -2.637
A133: BA3 | B133: Bath | C133: 51.275 | D133: -2.473
A134: BA4 | B134: Bath | C134: 51.171 | D134: -2.531
A135: BA5 | B135: Bath | C135: 51.212 | D135: -2.653
A136: BA6 | B136: Bath | C136: 51.141 | D136: -2.705
A137: BA7 | B137: Bath | C137: 51.089 | D137: -2.518
A138: BA8 | B138: Bath | C138: 50.999 | D138: -2.411
A139: BA9 | B139: Bath | C139: 51.057 | D139: -2.409
A140: BB1 | B140: Blackburn | C140: 53.756 | D140: -2.462
A141: BB10 | B141: Blackburn | C141: 53.799 | D141: -2.219
A142: BB11 | B142: Blackburn | C142: 53.783 | D142: -2.252
A143: BB12 | B143: Blackburn | C143: 53.803 | D143: -2.29
A144: BB18 | B144: Blackburn | C144: 53.914 | D144: -2.171
A145: BB2 | B145: Blackburn | C145: 53.741 | D145: -2.5
A146: BB3 | B146: Blackburn | C146: 53.698 | D146: -2.465
A147: BB4 | B147: Blackburn | C147: 53.703 | D147: -2.29
A148: BB5 | B148: Blackburn | C148: 53.754 | D148: -2.371
A149: BB6 | B149: Blackburn | C149: 53.792 | D149: -2.417
A150: BB7 | B150: Blackburn | C150: 53.874 | D150: -2.386
A151: BB8 | B151: Blackburn | C151: 53.858 | D151: -2.163
A152: BB9 | B152: Blackburn | C152: 53.837 | D152: -2.214
A153: BD1 | B153: Bradford | C153: 53.796 | D153: -1.752
A154: BD10 | B154: Bradford | C154: 53.832 | D154: -1.725
A155: BD11 | B155: Bradford | C155: 53.751 | D155: -1.676
A156: BD12 | B156: Bradford | C156: 53.746 | D156: -1.761
A157: BD13 | B157: Bradford | C157: 53.786 | D157: -1.859
A158: BD14 | B158: Bradford | C158: 53.782 | D158: -1.816
A159: BD15 | B159: Bradford | C159: 53.81 | D159: -1.836
A160: BD16 | B160: Bradford | C160: 53.849 | D160: -1.833
A161: BD17 | B161: Bradford | C161: 53.847 | D161: -1.767
A162: BD18 | B162: Bradford | C162: 53.831 | D162: -1.776
A163: BD19 | B163: Bradford | C163: 53.727 | D163: -1.712
A164: BD2 | B164: Bradford | C164: 53.814 | D164: -1.734
A165: BD20 | B165: Bradford | C165: 53.897 | D165: -1.947
A166: BD21 | B166: Bradford | C166: 53.864 | D166: -1.906
A167: BD22 | B167: Bradford | C167: 53.846 | D167: -1.952
A168: BD23 | B168: Bradford | C168: 53.993 | D168: -2.054
A169: BD24 | B169: Bradford | C169: 54.077 | D169: -2.274
A170: BD3 | B170: Bradford | C170: 53.798 | D170: -1.727
A171: BD4 | B171: Bradford | C171: 53.776 | D171: -1.718
A172: BD5 | B172: Bradford | C172: 53.778 | D172: -1.758
A173: BD6 | B173: Bradford | C173: 53.765 | D173: -1.783
A174: BD7 | B174: Bradford | C174: 53.783 | D174: -1.782
A175: BD8 | B175: Bradford | C175: 53.801 | D175: -1.781
A176: BD9 | B176: Bradford | C176: 53.812 | D176: -1.789
A177: BH1 | B177: Bournemouth | C177: 50.724 | D177: -1.86
A178: BH10 | B178: Bournemouth | C178: 50.759 | D178: -1.891
A179: BH11 | B179: Bournemouth | C179: 50.761 | D179: -1.917
A180: BH12 | B180: Bournemouth | C180: 50.737 | D180: -1.926
A181: BH13 | B181: Bournemouth | C181: 50.71 | D181: -1.917
A182: BH14 | B182: Bournemouth | C182: 50.721 | D182: -1.944
A183: BH15 | B183: Bournemouth | C183: 50.722 | D183: -1.984
A184: BH16 | B184: Bournemouth | C184: 50.738 | D184: -2.044
A185: BH17 | B185: Bournemouth | C185: 50.746 | D185: -1.975
A186: BH18 | B186: Bournemouth | C186: 50.758 | D186: -1.993
A187: BH19 | B187: Bournemouth | C187: 50.611 | D187: -1.97
A188: BH2 | B188: Bournemouth | C188: 50.721 | D188: -1.881
A189: BH20 | B189: Bournemouth | C189: 50.686 | D189: -2.146
A190: BH21 | B190: Bournemouth | C190: 50.812 | D190: -1.973
A191: BH22 | B191: Bournemouth | C191: 50.805 | D191: -1.887
A192: BH23 | B192: Bournemouth | C192: 50.746 | D192: -1.754
A193: BH24 | B193: Bournemouth | C193: 50.844 | D193: -1.786
A194: BH25 | B194: Bournemouth | C194: 50.752 | D194: -1.657
A195: BH3 | B195: Bournemouth | C195: 50.735 | D195: -1.88
A196: BH31 | B196: Bournemouth | C196: 50.876 | D196: -1.872
A197: BH4 | B197: Bournemouth | C197: 50.721 | D197: -1.898
A198: BH5 | B198: Bournemouth | C198: 50.725 | D198: -1.834
A199: BH6 | B199: Bournemouth | C199: 50.727 | D199: -1.804
A200: BH7 | B200: Bournemouth | C200: 50.735 | D200: -1.831
... 2624 more rows
